Cogmind - Beta 16 @@@ ROGUE MODE // 2026.01.18 @ 22:17:07 Player: the Result: Destroyed by H-77 Assassin with Coil Gun Performance ------------- Evolutions (6) 3000 Regions Visited (17) 3400 Robots Destroyed (169) 845 Value Destroyed (6196) 6196 Prototype IDs (56) 1120 Alien Tech Used (0) 0 Bonus (2926) 2926 TOTAL SCORE: 17487 Bonus ------- High Alert Combat Kills 475 Follower Combat Kills 1232 Met Data Miner 300 Met Warlord at Base 500 MAIN.C Attacked Warlord 500 Friendly Fire -81 Cogmind --------- Core Integrity 0/1150 Matter 108/300 Energy 10/100 System Corruption 25% Temperature Cool (0) Movement Flying (94) Location -4/Armory Parts ------- > --- POWER (3) -------- (None) > --- PROPULSION (5) --- Flying Combat-Biometal Exoskeleton > --- UTILITY (7) ------ Scrap Engine High-capacity Storage Unit Spectral Analyzer Advanced Targeting Computer > --- WEAPON (4) ------- Hyp. Ballistic Coil Construct/C > --- INVENTORY (20) --- Enhanced Biometal Leg Cooled Antigrav System Cooled Antigrav System Cooled Impulse Thruster Experimental Heat Sink Huge Storage Unit Experimental Matter Compressor (351) Advanced Terrain Scan Processor Core Analyzer Advanced Kinecellerator Advanced Kinecellerator Quantum Capacitor Centrium Medium Armor Plating Advanced Powered Armor Advanced Powered Armor Advanced Force Field Advanced Force Field Authchip [Processor] Compact Tesla Bomb Launcher Peak State ------------ > --- POWER ------------ Neutrino-Fission Core > --- PROPULSION ------- Flying Combat-Biometal Exoskeleton > --- UTILITY ---------- Armored Scrap Engine Huge Storage Unit Spectral Analyzer Long-range Sensor Array Advanced Signal Interpreter Advanced Targeting Computer > --- WEAPON ----------- Hyp. Ballistic Coil Construct/C > --- INVENTORY -------- Myomer Leg Enhanced Biometal Leg Cooled Antigrav System Cooled Antigrav System Cooled Impulse Thruster Cooled Impulse Thruster Experimental Heat Sink Advanced Cooling System Advanced Coolant Injector High-capacity Storage Unit Experimental Matter Compressor Advanced Terrain Scan Processor Core Analyzer Advanced Kinecellerator Advanced Kinecellerator Transmission Jammer Centrium Medium Armor Plating Advanced Remote Shield Improved Hacking Suite Experimental System Shield Authchip [Processor] Vortex Driver Vortex Driver [Rating: 143] Favorites ----------- Power Constructs Engine Ion Engine Power Core Constructs Reactor Light Antimatter Reactor Propulsion Constructs Treads Light Treads Leg Arachnoskeleton Flight Unit Constructs Utility Armored Scrap Engine Device Armored Scrap Engine Storage High-capacity Storage Unit Processor Advanced Targeting Computer Hackware Experimental System Shield Protection Improved Propulsion Shielding Weapon Constructs Energy Gun Small Laser Energy Cannon Subdweller Beam Cannon Ballistic Gun Autogun Ballistic Cannon Constructs Launcher Grenade Launcher Special Weapon Mining Laser Impact Weapon Maul Slashing Weapon Ripper Build | -11 -10 -10 -8 -8 -8 -6 -6 -6 -6 -5 -5 -5 -5 -5 -4 -4 -4 ------- Run | Yrd Mat Sub Mat Sto Rec Fac Low Low Dat Pro Fac Upp Upp War Pro Fac Arm Slots Evolved 12 | . . . 4 . . 4 . . . . 2 . . . . 2 . Power 2 | . . . . . . 1 . . . . . . . . . 1 . Propulsion 3 | . . . 1 . . 1 . . . . 1 . . . . . . Utility 5 | . . . 2 . . 2 . . . . 1 . . . . . . Weapon 2 | . . . 1 . . . . . . . . . . . . 1 . Parts Attached 97 | 7 11 8 16 11 2 7 . . . 8 9 1 . 5 . 3 9 Power 9 | 1 2 2 . 2 . . . . . . . . . . . . 2 Engine 4 | 1 2 1 . . . . . . . . . . . . . . . Core 4 | . . 1 . 2 . . . . . . . . . . . . 1 Reactor 1 | . . . . . . . . . . . . . . . . . 1 Propulsion 6 | 2 . 2 2 . . . . . . . . . . . . . . Treads 4 | 2 . 2 . . . . . . . . . . . . . . . Leg 2 | . . . 2 . . . . . . . . . . . . . . Wheel . | . . . . . . . . . . . . . . . . . . Hover . | . . . . . . . . . . . . . . . . . . Flight . | . . . . . . . . . . . . . . . . . . Utility 52 | 2 3 3 5 1 2 7 . . . 8 9 1 . 5 . 3 3 Device 29 | 1 2 1 2 . 2 1 . . . 5 7 1 . 2 . 3 2 Storage 7 | 1 1 1 . 1 . 1 . . . 1 . . . 1 . . . Processor 7 | . . . 1 . . 3 . . . 2 1 . . . . . . Hackware 3 | . . . . . . 1 . . . . 1 . . . . . 1 Protection 6 | . . 1 2 . . 1 . . . . . . . 2 . . . Artifact . | . . . . . . . . . . . . . . . . . . Weapon 30 | 2 6 1 9 8 . . . . . . . . . . . . 4 Energy Gun 6 | 2 . . 3 1 . . . . . . . . . . . . . Energy Cannon 2 | . . . . 1 . . . . . . . . . . . . 1 Ballistic Gun 14 | . 4 . 6 4 . . . . . . . . . . . . . Ballistic Cannon . | . . . . . . . . . . . . . . . . . . Launcher 3 | . . . . 2 . . . . . . . . . . . . 1 Special Weapon 1 | . 1 . . . . . . . . . . . . . . . . Impact Weapon 1 | . 1 . . . . . . . . . . . . . . . . Slashing Weapon 3 | . . 1 . . . . . . . . . . . . . . 2 Piercing Weapon . | . . . . . . . . . . . . . . . . . . Special Melee Weapon . | . . . . . . . . . . . . . . . . . . Unidentified Prototypes 19 | . . 1 2 2 1 . . . . 4 1 . . 4 . 1 3 Parts Lost 23 | . 1 . 1 . . 1 . . . 2 . . . . . 7 11 Power 10 | . 1 . . . . 1 . . . 2 . . . . . 2 4 Propulsion 1 | . . . . . . . . . . . . . . . . 1 . Utility 5 | . . . . . . . . . . . . . . . . 1 4 Weapon 7 | . . . 1 . . . . . . . . . . . . 3 3 Highest Loss Streak 5 | . 1 . 1 . . 1 . . . 2 . . . . . 5 4 To Critical Strikes 1 | . . . . . . . . . . . . . . . . 1 . Average Backups 18 | 1 12 14 18 20 18 19 19 20 20 23 21 19 20 23 24 22 20 Power . | . 2 . . 1 1 . . . . . . . . . . . . Propulsion 1 | . . 1 2 3 2 . . . . . . . 1 3 5 5 5 Utility 9 | . 4 4 3 3 6 13 12 13 13 13 13 14 15 15 15 14 13 Weapon 6 | . 6 7 12 12 7 5 7 7 7 9 7 4 4 4 4 2 1 Tool/Special . | . . . . . . . . . . . . . . . . . . Unused Backups 107 | . 5 5 3 6 19 17 2 1 . 1 9 2 . 11 . 4 22 Power 5 | . 1 1 . . . 2 . . . . . . . 1 . . . Propulsion 22 | . . 1 1 1 5 3 . . . . . . . 1 . 1 9 Utility 31 | . 2 1 . 1 . 8 1 1 . 1 2 . . 4 . 1 9 Weapon 49 | . 2 2 2 4 14 4 1 . . . 7 2 . 5 . 2 4 Tool/Special . | . . . . . . . . . . . . . . . . . . Average Slot Usage (%) 66 | . 99 100 68 75 58 51 53 53 53 47 51 52 52 52 52 46 41 Engine 4 | . 14 9 . . . 5 6 6 6 1 4 4 5 2 . . . Core 2 | . . 4 6 6 8 . . . . . . . . 1 . . 1 Treads 8 | . 27 28 . . 4 2 . . . 3 4 1 5 4 . . 2 Leg 2 | . . . 11 12 3 3 6 6 6 . . . . . 5 . . Device 12 | . 14 13 13 12 12 12 13 13 13 10 10 11 11 9 11 10 7 Storage 8 | . 14 14 6 6 8 6 6 6 6 6 5 5 5 5 5 5 5 Processor 8 | . . . 2 6 5 11 13 13 13 15 16 17 17 17 17 15 12 Protection 1 | . . . 8 12 3 . . . . . . . . . . . . Energy Gun 1 | . 6 . 7 . . . . . . . . . . . . . . Energy Cannon 2 | . . . . 1 3 . 3 6 6 4 4 4 . 2 5 1 . Ballistic Gun 6 | . 17 23 10 16 3 . . . . . . . . . . . . Ballistic Cannon 1 | . . . . . 4 6 2 . . 1 . . 5 2 . 3 1 Peak Build Rating 143 | 7 11 22 64 69 73 72 80 80 80 93 115 115 108 133 131 143 118 Average Rating 63 | 5 9 17 58 64 47 60 76 80 80 88 105 111 107 117 131 133 99 On Entrance 72 | . 7 10 22 63 69 43 67 80 80 80 89 115 108 108 133 131 93 Avg Prop Armor Cover (%) . | . . . . . . . . . . . . . . . . . . Naked Turns . | . . . . . . . . . . . . . . . . . . Heaviest Build 152 | 12 32 34 64 105 105 71 81 76 76 99 108 88 88 143 135 152 111 Greatest Support 189 | 40 40 40 105 105 105 78 106 106 106 106 148 148 148 148 148 189 151 Greatest Overweight (x) 3 | . . . . . 3 . 1 . . . 1 . . . . . . Average Overweight (x) . | . . . . . . . . . . . . . . . . . . Largest Inventory Capacity 25 | 8 15 20 20 25 25 20 20 20 20 25 25 20 20 25 25 25 25 Average Capacity 20 | 7 14 15 19 21 23 20 20 20 20 23 21 20 20 24 25 25 23 Most Carried 25 | 3 15 16 20 25 25 20 20 20 20 25 25 20 20 25 24 25 25 Average Carried 18 | 1 12 14 18 20 18 19 19 19 20 23 21 19 20 23 24 23 21 Final Capacity 25 | 8 15 15 20 25 20 20 20 20 20 25 20 20 20 25 25 25 20 Final Carried 25 | 3 15 15 19 25 19 20 20 20 20 25 20 20 20 24 24 23 20 Scrap Engine Consumption 197 | . . . . . 51 15 7 6 . 14 18 11 . 30 1 9 35 Constructs Created 8 | . . . . . 3 . . . . . 1 . . . . . 4 Constructs Modified 74 | . . . . . 18 7 4 . . 7 7 6 . 8 . 11 6 Class Distribution -------------------- 41% | Construct 30% | Mutant 13% | Commander-Construct 9% | Commander-Tank 3% | Tank Dominant Class ---------------- Mutant | -10/Materials Mutant | -10/Subcaves Tank | -8/Materials Commander-Tank | -8/Storage Commander-Construct | -8/Recycling Construct | -6/Factory Construct | -6/Lower Caves Construct | -6/Lower Caves Construct | -6/Data Miner Construct | -5/Proximity Caves Construct | -5/Factory Construct | -5/Upper Caves Construct | -5/Upper Caves Commander-Construct | -5/Warlord Construct | -4/Proximity Caves Construct | -4/Factory Mutant | -4/Armory Resources | -11 -10 -10 -8 -8 -8 -6 -6 -6 -6 -5 -5 -5 -5 -5 -4 -4 -4 ----------- Run | Yrd Mat Sub Mat Sto Rec Fac Low Low Dat Pro Fac Upp Upp War Pro Fac Arm Matter Collected 10448 | 270 385 188 279 669 257 947 584 521 . 1064 675 828 475 760 10 1870 666 Remotely . | . . . . . . . . . . . . . . . . . . Salvage Created 8868 | 119 774 104 443 852 249 1087 344 268 . 971 833 489 253 . . 1460 622 Parts 433 | 11 49 6 24 46 17 49 16 9 . 59 30 28 4 . . 54 31 Haulers Intercepted 19 | . 2 . 5 6 . . . . . 1 3 . . . . 2 . Recyclers Shooed 12 | 1 . . 4 . . 3 . . . . 1 . . . . 3 . Parts Field Recycled . | . . . . . . . . . . . . . . . . . . Retrieved Matter . | . . . . . . . . . . . . . . . . . . Parts Self-Destructed 105 | . . 10 . . . . 13 6 . 57 . 19 . . . . . Prevented . | . . . . . . . . . . . . . . . . . . Parts Restored . | . . . . . . . . . . . . . . . . . . Kills | -11 -10 -10 -8 -8 -8 -6 -6 -6 -6 -5 -5 -5 -5 -5 -4 -4 -4 ------- Run | Yrd Mat Sub Mat Sto Rec Fac Low Low Dat Pro Fac Upp Upp War Pro Fac Arm Combat Hostiles Destroyed 108 | . 12 2 1 9 5 14 6 5 . 13 3 7 . . . 13 18 Melee 4 | . . . . . . 1 . . . . . . . . . . 3 Guns 29 | . 12 2 1 7 2 . . . . . . . . . . . 5 Cannons 68 | . . . . . 3 13 6 5 . 13 2 7 . . . 9 10 AOE 5 | . . . . 2 . . . . . . . . . . . 3 . Classes Destroyed 20 | 2 4 2 1 2 . 2 2 1 . 3 . . . . . . 1 Worker 9 | . . . . 3 . 3 . . . . 3 . . . . . . Builder 7 | . 4 . 1 1 . . . . . . . . . . . 1 . Tunneler 3 | 3 . . . . . . . . . . . . . . . . . Hauler 19 | . 2 . 5 6 . . . . . 1 3 . . . . 2 . Recycler 14 | 1 . . 1 2 . 4 . . . . 2 . . . . 4 . Mechanic 1 | . . . . . . 1 . . . . . . . . . . . Operator 3 | . . . 1 . . 1 . . . . 1 . . . . . . Watcher 4 | . 2 . . . . . . . . . 2 . . . . . . Swarmer 27 | . . . . 2 . 7 3 1 . 4 . . . . . 3 7 Grunt 34 | . 12 . . 5 1 . 2 1 . 2 2 6 . . . . 3 Brawler 1 | . . . . . . . . . . 1 . . . . . . . Duelist 2 | . . . . . . . . . . . . . . . . . 2 Protector 2 | . . . . . . . . . . 2 . . . . . . . Sentry 11 | . . 1 1 2 . 3 . 1 . . 1 . . . . 1 1 Specialist 1 | . . . . . . . . . . 1 . . . . . . . Hunter 6 | . . . . . . . . 1 . 1 . . . . . 2 2 Programmer 15 | . . . . . . 4 . . . 1 . . . . . 7 3 Behemoth 4 | . . . . . . . 1 1 . 1 . 1 . . . . . Subdweller 6 | . . 1 . . 5 . . . . . . . . . . . . Packrat 3 | . . . . . . . . . . . . . 3 . . . . Samaritan 3 | . . . . . . . 2 . . . . . 1 . . . . Best Kill Streak 8 | 2 3 1 2 3 3 6 3 3 . 6 8 4 . . . 5 6 Combat Bots Only 6 | . 2 1 1 3 3 6 3 3 . 5 2 4 . . . 4 6 Max Kills in Single Turn 3 | 1 2 1 2 1 1 1 1 1 . 1 3 1 1 . . 2 1 Gunslinging . | . . . . . . . . . . . . . . . . . . Exploded 2 | . . . . 1 . . . . . . . . . . . 2 . Melee 1 | . . . . . . 1 . . . . . . . . . . 1 Uniques/NPCs Destroyed . | . . . . . . . . . . . . . . . . . . Combat | -11 -10 -10 -8 -8 -8 -6 -6 -6 -6 -5 -5 -5 -5 -5 -4 -4 -4 -------- Run | Yrd Mat Sub Mat Sto Rec Fac Low Low Dat Pro Fac Upp Upp War Pro Fac Arm Hostile Shots Fired 1228 | . 58 11 11 50 9 111 23 47 . 143 8 33 . 31 . 293 400 Missed 511 | . 19 2 2 16 1 41 10 18 . 62 2 10 . 13 . 137 178 Hits 717 | . 39 9 9 34 8 70 13 29 . 81 6 23 . 18 . 156 222 Melee 9 | . . . . . . . . . . . . . . . . . 9 Projectile 708 | . 39 9 9 34 8 70 13 29 . 81 6 23 . 18 . 156 213 AOE 12 | . . . . . . . . . . . . . . 7 . . 5 Critical Strikes 31 | . . . 1 . 1 1 1 2 . 5 . 1 . 2 . 10 7 Damage Taken 13254 | . 493 176 269 430 161 811 329 537 . 1441 191 448 . 587 . 3414 3967 Core 1764 | . 67 19 37 18 . 130 34 102 . 109 20 58 . 10 . 505 655 Absorbed by Shields 106 | . . . . . . . . . . . . . . 106 . . . Redirected to Shielding 155 | . . . 51 91 13 . . . . . . . . . . . . Ignored by Resistances 19 | . . . . . . 19 . . . . . . . . . . . Regen/Repaired (Parts) 5846 | . 183 . . . . 703 230 . . 1488 216 375 . 305 . 521 1825 Core Remaining (%) 80 | 100 . 65 . . 90 . . . . 55 . . . . 91 . . Volleys Fired 544 | 11 66 5 29 61 22 64 19 23 . 44 22 27 6 6 1 77 61 Largest 3 | 2 2 2 3 3 3 1 1 1 . 1 1 1 1 1 1 1 1 Hottest 209 | 90 100 46 150 130 130 67 67 67 . 209 209 209 209 209 209 209 100 Shots Fired 780 | 22 123 8 80 152 46 63 19 23 . 44 22 27 6 6 1 77 61 Gun 415 | 22 116 8 80 144 28 . . . . . . . . . . . 17 Cannon 356 | . . . . 6 18 63 19 23 . 44 22 27 6 6 1 77 44 Launcher 2 | . . . . 2 . . . . . . . . . . . . . Special 7 | . 7 . . . . . . . . . . . . . . . . Kinetic 502 | . 104 8 35 144 28 28 14 23 . 37 20 27 6 1 . 1 26 Thermal 228 | 22 19 . 45 6 18 35 5 . . 7 2 . . 1 . 68 . Explosive 2 | . . . . 2 . . . . . . . . . . . . . Electromagnetic 13 | . . . . . . . . . . . . . . 4 1 8 . Entropic 35 | . . . . . . . . . . . . . . . . . 35 Robot Hit Streak 13 | 7 10 4 10 11 12 11 13 13 . 9 7 10 8 12 . 10 9 Robot Miss Streak 5 | 2 3 1 4 5 3 3 4 3 . 2 1 2 . . . 5 4 Penetration Max 2 | . . . . . . . . . . . 2 . . . . . . Secondary Targets 1 | . 1 . . . . . . . . . . . . . . . . Max Gunslinging Chain 1 | . 1 . . . . . . . . . . . . . . . . Shots Hit Robots 458 | 13 80 6 34 79 23 43 17 22 . 33 11 19 1 4 . 31 42 Core Hits 245 | 5 34 4 13 29 9 39 14 11 . 31 5 7 2 . . 19 23 Critical Kills 2 | . . . 1 1 . . . . . . . . . . . . . Critical Parts Destroyed 7 | . 4 . 1 1 . . . . . . . . . . . . 1 Critical Strikes 16 | . 4 . 2 2 . . . . . . . . . . . . 8 Destroy 6 | . 1 . 2 2 . . . . . . . . . . . . 1 Smash 3 | . 3 . . . . . . . . . . . . . . . . Sever 1 | . . . . . . . . . . . . . . . . . 1 Sunder 6 | . . . . . . . . . . . . . . . . . 6 Melee Attacks 31 | . 13 5 . . . . . . . . . . . . . . 13 Thermal 4 | . . . . . . . . . . . . . . . . . 4 Impact 13 | . 13 . . . . . . . . . . . . . . . . Slashing 14 | . . 5 . . . . . . . . . . . . . . 9 Piercing . | . . . . . . . . . . . . . . . . . . Sneak Attacks 11 | . 3 . . . . . . . . . . . . . . . 8 Combat Hostiles . | . . . . . . . . . . . . . . . . . . Follow-up Attacks . | . . . . . . . . . . . . . . . . . . Damage Inflicted 20102 | 169 1172 89 795 1811 499 1870 1077 1234 . 2037 2429 1637 194 251 . 2781 2057 Guns 4132 | 169 896 89 795 1484 308 . . . . . . . . . . . 391 Cannons 14371 | . . . . 54 191 1856 1077 1234 . 2037 2352 1637 89 251 . 2225 1368 Explosions 805 | . . . . 217 . . . . . . 77 . . . . 511 . Melee 574 | . 276 . . . . . . . . . . . . . . . 298 Ramming 220 | . . . . 56 . 14 . . . . . . 105 . . 45 . Kinetic 12713 | . 801 89 364 1484 308 1075 771 1234 . 1742 2352 1637 89 . . . 767 Thermal 4489 | 169 95 . 431 54 191 781 306 . . 295 . . . . . 2167 . Explosive 620 | . . . . 217 . . . . . . 77 . . . . 326 . Electromagnetic 494 | . . . . . . . . . . . . . . 251 . 243 . Impact 276 | . 276 . . . . . . . . . . . . . . . . Slashing 298 | . . . . . . . . . . . . . . . . . 298 Piercing . | . . . . . . . . . . . . . . . . . . Entropic 992 | . . . . . . . . . . . . . . . . . 992 Highest Corruption 23 | . . . 2 2 2 5 5 5 5 7 . . . . . 19 23 Average Corruption 5 | . . . 2 2 2 3 5 5 5 6 . . . . . 4 21 Corruption Purged . | . . . . . . . . . . . . . . . . . . Corruption Blocked . | . . . . . . . . . . . . . . . . . . Effects 207 | . . . 4 15 32 16 21 20 1 42 . . . . . 11 45 Message Errors 42 | . . . . 2 12 4 3 6 . 4 . . . . . . 11 Matter Fused 61 | . . . 1 3 11 4 6 5 1 14 . . . . . 3 13 Heat Flow Errors 18 | . . . . 1 1 2 1 1 . 9 . . . . . 1 2 Energy Discharges 29 | . . . . 3 1 1 8 5 . 6 . . . . . 3 2 Parts Fused 3 | . . . 1 . . . 1 . . . . . . . . . 1 Data Loss (minor) 23 | . . . 2 4 6 1 1 1 . 4 . . . . . . 4 Data Loss (major) 11 | . . . . 1 1 2 . 2 . 3 . . . . . . 2 Alerts 5 | . . . . . . 1 1 . . 2 . . . . . . 1 Misdirections 13 | . . . . . . . . . . . . . . . . 4 9 Weapon Failures 2 | . . . . 1 . 1 . . . . . . . . . . . Overload Shots . | . . . . . . . . . . . . . . . . . . Overflow Damage 1580 | . 276 . . 22 . 44 19 16 . 42 703 77 19 . . 295 67 Projectiles 1205 | . . . . 4 . 44 19 16 . 42 676 77 . . . 260 67 Explosions 43 | . . . . 8 . . . . . . 27 . . . . 8 . Melee 332 | . 276 . . 10 . . . . . . . . 19 . . 27 . Knockbacks 51 | . . . . . . 11 2 1 . 14 5 . . . . 1 17 Impact 1 | . . . . . . . . . . . . . . . . 1 . Kinetic 45 | . . . . . . 11 2 1 . 14 4 . . . . . 13 Secondary 5 | . . . . . . . . . . . 1 . . . . . 4 Self-Inflicted Damage 203 | . . . . . . . . . . . 61 . . . . 142 . Shots 3 | . . . . . . . . . . . 1 . . . . 2 . Rammed 5 | . . . . . . . . . . . . . 4 . . 1 . Targets Rammed 8 | . . . . 2 . 1 . . . . . . 4 . . 1 . Kicked 2 | . . . . 2 . . . . . . . . . . . . . Crushed 1 | . . . . . . 1 . . . . . . . . . . . Highest Temperature 560 | 270 60 . 186 197 192 288 353 276 . 324 503 373 314 320 185 560 343 Average Temperature 98 | 116 16 . 81 34 65 56 94 109 . 102 132 137 139 120 101 145 118 Received Heat Transfer 1922 | . 267 51 87 144 6 96 395 60 . 141 36 144 . 76 . 331 88 Effects 16 | 1 . . . . . . 1 . . . 1 4 . . . 9 . Shutdowns 2 | . . . . . . . 1 . . . . . . . . 1 . Energy Bleed 3 | 1 . . . . . . . . . . . 1 . . . 1 . Interference 3 | . . . . . . . . . . . . 3 . . . . . Damage (minor) 2 | . . . . . . . . . . . 1 . . . . 1 . Damage (major) 6 | . . . . . . . . . . . . . . . . 6 . Siege Activations . | . . . . . . . . . . . . . . . . . . Martial Activations . | . . . . . . . . . . . . . . . . . . Shielding Activations . | . . . . . . . . . . . . . . . . . . Robots Disrupted . | . . . . . . . . . . . . . . . . . . Combat Hostiles . | . . . . . . . . . . . . . . . . . . Robots Corrupted 6 | . 1 . . . . . . . . . 1 . 2 . . 2 . Combat Hostiles 2 | . . . . . . . . . . . 1 . . . . 1 . Parts Fried 14 | . 5 . . . . . . . . . . . . . . 9 . Impact Corruptions 16 | . 10 . . 1 . . . . . . 1 . 3 . . 1 . Robots Melted . | . . . . . . . . . . . . . . . . . . Combat Hostiles . | . . . . . . . . . . . . . . . . . . Parts Melted 6 | . . . . . 1 . . . . 4 . . . . . 1 . Heat Transferred 4011 | 434 260 . 525 74 259 694 407 . . 148 . . . . . 1210 . Parts Sabotaged . | . . . . . . . . . . . . . . . . . . Parts Stolen . | . . . . . . . . . . . . . . . . . . Parts Stripped . | . . . . . . . . . . . . . . . . . . Power Chain Reactions . | . . . . . . . . . . . . . . . . . . Alert | -11 -10 -10 -8 -8 -8 -6 -6 -6 -6 -5 -5 -5 -5 -5 -4 -4 -4 ------- Run | Yrd Mat Sub Mat Sto Rec Fac Low Low Dat Pro Fac Upp Upp War Pro Fac Arm Maximum Alert Level 4 | . . . 2 3 1 2 . . . . . . . . . 3 4 Low Security (%) 77 | 100 100 . 59 . 99 96 . . . . 100 . . . . 82 . Level 1 3 | . . . 23 5 . . . . . . . . . . . 3 11 Level 2 15 | . . . 16 92 . 2 . . . . . . . . . 8 55 Level 3 1 | . . . . 2 . . . . . . . . . . . 5 16 Level 4 1 | . . . . . . . . . . . . . . . . . 16 Level 5 . | . . . . . . . . . . . . . . . . . . High Security . | . . . . . . . . . . . . . . . . . . Max Security . | . . . . . . . . . . . . . . . . . . Peak Influence 1251 | 5 88 . 677 731 204 444 . . . . 165 . . . . 931 1251 Initial 434 | . . . . 281 204 . . . . . . . . . . . 434 Average 149 | . 21 . 190 576 6 39 . . . . 57 . . . . 166 655 Influence Increases 7450 | 20 470 20 1036 1057 41 853 140 120 . 295 329 185 60 111 . 1372 1341 Destroy 0b10 Robot/C 2780 | . 240 20 340 460 . 380 120 100 . 220 60 140 . 60 . 260 380 Destroy 0b10 Robot/NC 355 | 20 40 . 60 75 . 45 . . . 20 55 . . . . 35 5 Destroy Leader 672 | . 58 . 94 146 . 110 20 20 . 40 20 30 . . . 74 60 Allied During Kill 622 | . . . 293 278 . 26 . . . . . . . 21 . . 4 Successful Hack 101 | . 24 . 5 23 17 20 . . . . 5 . . . . . 7 Select Force Hacks 60 | . 60 . . . . . . . . . . . . . . . . Disable Machine 480 | . . . 60 45 15 75 . . . . 75 . . . . 120 90 Anti-Garrison Action 300 | . . . 150 . . 150 . . . . . . . . . . . Destroy Structure 370 | . 18 . 19 15 9 17 . . . . 84 . . . . 118 90 Partial Spotted 30 | . . . . . . . . . . . . . . . . 15 15 Lose Combat Pursuer 1680 | . 30 . 15 15 . 30 . . . 15 30 15 60 30 . 750 690 Influence Decreases 6317 | 20 384 106 369 1198 567 415 552 94 52 295 204 289 81 102 9 484 1096 Entered New Map 1486 | . . 42 . 386 322 . 163 6 52 . . 47 5 . 9 . 454 Time Decay 3499 | 20 374 64 219 452 80 285 389 88 . 275 204 242 76 75 . 314 342 Search Patrol Dispatched 200 | . . . . . . . . . . . . . . . . 100 100 Lost Part 230 | . 10 . 10 . . 10 . . . 20 . . . . . 70 110 Lost Ally 457 | . . . 140 60 20 120 . . . . . . . 27 . . 90 Purge Threat 445 | . . . . 300 145 . . . . . . . . . . . . Squads Dispatched 33 | . 4 . 2 2 . 11 . . . . 2 . . . . 4 8 Investigation 7 | . 3 . . 1 . 3 . . . . . . . . . . . Extermination 8 | . . . . . . 2 . . . . 1 . . . . 2 3 Reinforcement 13 | . 1 . . 1 . 3 . . . . 1 . . . . 2 5 Assault 4 | . . . 2 . . 2 . . . . . . . . . . . Garrison 1 | . . . . . . 1 . . . . . . . . . . . Intercept . | . . . . . . . . . . . . . . . . . . Searches Triggered 2 | . . . . . . . . . . . . . . . . 1 1 Construction Impeded . | . . . . . . . . . . . . . . . . . . Haulers Reinforced 1 | . . . . . . . . . . . 1 . . . . . . Active Scanning Responses . | . . . . . . . . . . . . . . . . . . Cargo Convoy Interrupts . | . . . . . . . . . . . . . . . . . . Stealth | -11 -10 -10 -8 -8 -8 -6 -6 -6 -6 -5 -5 -5 -5 -5 -4 -4 -4 --------- Run | Yrd Mat Sub Mat Sto Rec Fac Low Low Dat Pro Fac Upp Upp War Pro Fac Arm Distress Signals 16 | . 1 . 3 2 3 . . . . . 2 . . . . 3 2 Communications Jammed . | . . . . . . . . . . . . . . . . . . Distress Signals . | . . . . . . . . . . . . . . . . . . Times Spotted 417 | . 18 9 19 27 7 24 4 5 . 17 8 7 4 100 . 87 81 Peak Tracking Total 29 | . 3 2 5 5 2 5 2 2 . 7 3 3 4 10 . 29 26 Tactical Retreats 31 | . 2 . 1 1 . 1 . . . 1 1 1 1 2 . 10 10 Traps | -11 -10 -10 -8 -8 -8 -6 -6 -6 -6 -5 -5 -5 -5 -5 -4 -4 -4 ------- Run | Yrd Mat Sub Mat Sto Rec Fac Low Low Dat Pro Fac Upp Upp War Pro Fac Arm Traps Triggered 12 | . 2 1 1 . . 1 . . . . . . . . . 4 3 Indirectly . | . . . . . . . . . . . . . . . . . . Trap Hack Attempts . | . . . . . . . . . . . . . . . . . . Triggered . | . . . . . . . . . . . . . . . . . . Disarmed . | . . . . . . . . . . . . . . . . . . Reprogrammed . | . . . . . . . . . . . . . . . . . . Reused . | . . . . . . . . . . . . . . . . . . Traps Extracted . | . . . . . . . . . . . . . . . . . . Installed . | . . . . . . . . . . . . . . . . . . Triggered . | . . . . . . . . . . . . . . . . . . Machines | -11 -10 -10 -8 -8 -8 -6 -6 -6 -6 -5 -5 -5 -5 -5 -4 -4 -4 ---------- Run | Yrd Mat Sub Mat Sto Rec Fac Low Low Dat Pro Fac Upp Upp War Pro Fac Arm Machines Disabled 36 | . . 1 5 3 1 6 . . . . 5 . . 1 . 8 6 Max in Single Turn 3 | . . 1 1 1 1 2 . . . . 3 . . 1 . 2 1 Garrison Access 2 | . . . 1 . . 1 . . . . . . . . . . . Machines Repaired . | . . . . . . . . . . . . . . . . . . Machines Dismantled . | . . . . . . . . . . . . . . . . . . Machines Sabotaged . | . . . . . . . . . . . . . . . . . . Overloaded Fab Kills . | . . . . . . . . . . . . . . . . . . Hacking | -11 -10 -10 -8 -8 -8 -6 -6 -6 -6 -5 -5 -5 -5 -5 -4 -4 -4 --------- Run | Yrd Mat Sub Mat Sto Rec Fac Low Low Dat Pro Fac Upp Upp War Pro Fac Arm Machines Accessed 62 | . 10 2 2 12 12 7 . . 3 . 6 . . 1 . 5 2 Terminals 35 | . 7 . 1 11 4 2 . . . . 4 . . . . 4 2 Fabricators 3 | . . . . . . 2 . . . . 1 . . . . . . Repair Stations 3 | . 1 . . . . 2 . . . . . . . . . . . Recycling Units 11 | . 2 . . 1 7 . . . . . 1 . . . . . . Scanalyzers 1 | . . . . . . . . . . . . . . . . 1 . Garrison Access 2 | . . . 1 . . 1 . . . . . . . . . . . Total Hacks 157 | . 30 4 6 27 26 14 . . 22 . 10 . . 1 . 8 9 Successful 91 | . 17 4 2 13 13 8 . . 22 . 5 . . 1 . 2 4 Failed 65 | . 13 . 4 14 12 6 . . . . 5 . . . . 6 5 Catastrophic 10 | . 1 . . 3 2 . . . . . 1 . . . . 3 . Database Lockouts 1 | . . . . . 1 . . . . . . . . . . . . Manual 47 | . 15 . 3 8 10 6 . . . . 1 . . . . 1 3 Terminals 89 | . 18 . 4 26 15 4 . . . . 8 . . . . 5 9 Fabricators 6 | . . . . . . 5 . . . . 1 . . . . . . Repair Stations 10 | . 6 . . . . 4 . . . . . . . . . . . Recycling Units 17 | . 6 . . 1 9 . . . . . 1 . . . . . . Scanalyzers 3 | . . . . . . . . . . . . . . . . 3 . Garrison Access 3 | . . . 2 . . 1 . . . . . . . . . . . Terminal Hacks 54 | . 1 4 1 12 6 . . . 22 . 3 . . 1 . 1 3 Record 9 | . . 3 . . . . . . 6 . . . . . . . . Part Schematic 9 | . . . . 1 . . . . 8 . . . . . . . . Robot Schematic 5 | . . . . . . . . . 5 . . . . . . . . Robot Analysis 1 | . . . . 1 . . . . . . . . . . . . . Prototype ID Bank 8 | . . . . 2 3 . . . 3 . . . . . . . . Open Door 6 | . . . . 4 . . . . . . . . . 1 . . 1 Branch Access Points 1 | . . . . . . . . . . . . . . . . . 1 Terminal Index 1 | . . . 1 . . . . . . . . . . . . . . Alert Level 3 | . . . . 1 . . . . . . 1 . . . . 1 . Unreport Threat 3 | . . . . 2 1 . . . . . . . . . . . . Locate Traps 4 | . 1 . . . . . . . . . 2 . . . . . 1 Recall Reinforcements 1 | . . . . 1 . . . . . . . . . . . . . Proto ID Catalog 1 | . . 1 . . . . . . . . . . . . . . . Release Object 2 | . . . . . 2 . . . . . . . . . . . . Fabricator Hacks 2 | . . . . . . 2 . . . . . . . . . . . Load Schematic 2 | . . . . . . 2 . . . . . . . . . . . Repair Station Hacks 9 | . 6 . . . . 3 . . . . . . . . . . . Scan Component 5 | . 3 . . . . 2 . . . . . . . . . . . Repair 4 | . 3 . . . . 1 . . . . . . . . . . . Recycling Unit Hacks 10 | . 1 . . 1 7 . . . . . 1 . . . . . . Report Inventory 1 | . . . . 1 . . . . . . . . . . . . . Retrieve Components 9 | . 1 . . . 7 . . . . . 1 . . . . . . Scanalyzer 1 | . . . . . . . . . . . . . . . . 1 . Insert Component 1 | . . . . . . . . . . . . . . . . 1 . Garrison Access Hacks . | . . . . . . . . . . . . . . . . . . Unauthorized Hacks 15 | . 9 . 1 . . 3 . . . . 1 . . . . . 1 Terminals 12 | . 7 . 1 . . 2 . . . . 1 . . . . . 1 Assimilate 1 | . . . . . . 1 . . . . . . . . . . . Botnet 6 | . 2 . 1 . . 1 . . . . 1 . . . . . 1 Skim 5 | . 5 . . . . . . . . . . . . . . . . Fabricators 1 | . . . . . . 1 . . . . . . . . . . . Recompile 1 | . . . . . . 1 . . . . . . . . . . . Repair Stations . | . . . . . . . . . . . . . . . . . . Recycling Units 2 | . 2 . . . . . . . . . . . . . . . . Tunnel 2 | . 2 . . . . . . . . . . . . . . . . Scanalyzers . | . . . . . . . . . . . . . . . . . . Garrison Access . | . . . . . . . . . . . . . . . . . . Data Cores Recovered 2 | . . . . 1 . . . . . . 1 . . . . . . Used 2 | . . . . 1 . . . . . . 1 . . . . . . Hacking Detections 45 | . 9 . 2 9 7 5 . . . . 6 . . . . 5 2 Full Trace Events 1 | . . . . . . 1 . . . . . . . . . . . Feedback Events . | . . . . . . . . . . . . . . . . . . Feedback Blocked . | . . . . . . . . . . . . . . . . . . Robot Schematics Acquired 5 | . . . . . . . . . 5 . . . . . . . . Robots Built . | . . . . . . . . . . . . . . . . . . Authchips . | . . . . . . . . . . . . . . . . . . Time . | . . . . . . . . . . . . . . . . . . Total Robot Build Rating . | . . . . . . . . . . . . . . . . . . Part Schematics Acquired 9 | . . . . 1 . . . . 8 . . . . . . . . Parts Built . | . . . . . . . . . . . . . . . . . . Authchips . | . . . . . . . . . . . . . . . . . . Time . | . . . . . . . . . . . . . . . . . . Total Part Build Rating . | . . . . . . . . . . . . . . . . . . Part Studies Acquired . | . . . . . . . . . . . . . . . . . . Parts Repaired 4 | . 3 . . . . 1 . . . . . . . . . . . Time 116 | . 90 . . . . 26 . . . . . . . . . . . Parts Recycled . | . . . . . . . . . . . . . . . . . . Recycled Matter . | . . . . . . . . . . . . . . . . . . Retrieved Matter . | . . . . . . . . . . . . . . . . . . Retrieved Components 21 | . 2 . . . 16 . . . . . 3 . . . . . . Parts Scanalyzed . | . . . . . . . . . . . . . . . . . . Part Schematics Acquired . | . . . . . . . . . . . . . . . . . . Parts Damaged . | . . . . . . . . . . . . . . . . . . Bothacking | -11 -10 -10 -8 -8 -8 -6 -6 -6 -6 -5 -5 -5 -5 -5 -4 -4 -4 ------------ Run | Yrd Mat Sub Mat Sto Rec Fac Low Low Dat Pro Fac Upp Upp War Pro Fac Arm Used RIF Installer . | . . . . . . . . . . . . . . . . . . Robots Hacked . | . . . . . . . . . . . . . . . . . . Non-combat . | . . . . . . . . . . . . . . . . . . Combat . | . . . . . . . . . . . . . . . . . . Robot Hacks Applied . | . . . . . . . . . . . . . . . . . . Relay Couplers Released 3 | . . . 2 . . 1 . . . . . . . . . . . Machine Destruction 3 | . . . 2 . . 1 . . . . . . . . . . . Fabnet Peak Effective % . | . . . . . . . . . . . . . . . . . . Robots Rewired 11 | . . . . . . . . . . . . . . 5 . . 6 Allies Hacked 1 | . . . . . . . . . . . . . . . . . 1 Hacks Repelled . | . . . . . . . . . . . . . . . . . . Allies | -11 -10 -10 -8 -8 -8 -6 -6 -6 -6 -5 -5 -5 -5 -5 -4 -4 -4 -------- Run | Yrd Mat Sub Mat Sto Rec Fac Low Low Dat Pro Fac Upp Upp War Pro Fac Arm Total Allies 37 | . . 15 . 10 . 1 . . . . . . . 5 . . 6 Largest Group 14 | . . 14 14 11 9 7 . . . . . . . 5 . . 3 Highest-Rated Group 271 | . . 267 266 192 160 128 . . . . . . . 271 . . 144 Highest-Rated Ally 68 | . . 20 19 29 29 29 . . . . . . . 68 . . 64 Total Orders 12 | . . . . . 2 . . . . . . . . 9 . . 1 STAY 5 | . . . . . 1 . . . . . . . . 3 . . 1 FOLLOW 4 | . . . . . 1 . . . . . . . . 3 . . . AID 3 | . . . . . . . . . . . . . . 3 . . . Ally Attacks 261 | . . 9 97 71 16 34 . . . . . . . 20 . . 14 Total Damage 4807 | . . 120 1743 963 239 524 . . . . . . . 774 . . 444 Kills 53 | . . 1 22 17 2 6 . . . . . . . 3 . . 2 Allies Corrupted 2 | . . . 2 . . . . . . . . . . . . . . Allies Melted . | . . . . . . . . . . . . . . . . . . Intel | -11 -10 -10 -8 -8 -8 -6 -6 -6 -6 -5 -5 -5 -5 -5 -4 -4 -4 ------- Run | Yrd Mat Sub Mat Sto Rec Fac Low Low Dat Pro Fac Upp Upp War Pro Fac Arm Active Infowar (turns) 15697 | 91 2471 92 528 1123 2647 1127 1149 734 72 1189 703 540 280 1076 348 754 773 Optics 11677 | . . . 199 1123 1838 899 1149 734 72 1189 703 540 280 1076 348 754 773 Sensors 2368 | . . . . . . . . . . . 642 303 269 630 348 164 12 Structural 23 | . 23 . . . . . . . . . . . . . . . . Seismic 9641 | 91 2448 92 528 1123 1512 1112 1149 734 72 600 . . . . . . 180 Jamming 36 | . . . . . . . . . . . 24 . . . . 12 . Robot Analysis Total 1 | . . . . 1 . . . . . . . . . . . . . Derelict Logs Recovered 15 | . . 3 . . . . 2 2 . 1 . 1 3 . 3 . . Drone Launches . | . . . . . . . . . . . . . . . . . . Drone Recoveries . | . . . . . . . . . . . . . . . . . . Exploration | -11 -10 -10 -8 -8 -8 -6 -6 -6 -6 -5 -5 -5 -5 -5 -4 -4 -4 ------------- Run | Yrd Mat Sub Mat Sto Rec Fac Low Low Dat Pro Fac Upp Upp War Pro Fac Arm Turns Passed 17797 | 187 2471 2040 559 1123 2647 1130 1149 734 72 1189 703 553 280 1076 348 763 773 Spaces Moved 12972 | 91 1259 1203 342 717 1287 1108 772 712 78 601 546 454 488 1251 458 895 710 Core 5 | 5 . . . . . . . . . . . . . . . . . Treads 6531 | 86 1259 1203 1 . 616 553 . . . 323 445 94 488 1138 . . 325 Legs 4441 | . . . 341 717 545 555 772 712 78 56 . . . 113 458 94 . Wheels 587 | . . . . . 126 . . . . . 101 360 . . . . . Hover 822 | . . . . . . . . . . . . . . . . 801 21 Flight 586 | . . . . . . . . . . 222 . . . . . . 364 Fastest Speed 36 | 50 160 160 110 110 77 77 89 92 92 55 52 52 52 52 64 50 36 Average Speed 97 | 153 160 160 110 110 125 83 124 92 92 84 91 52 52 53 64 50 45 Slowest Speed 440 | 160 160 160 160 110 440 89 208 92 92 102 150 52 52 64 64 64 94 Overloaded Moves . | . . . . . . . . . . . . . . . . . . Propulsion Burnouts . | . . . . . . . . . . . . . . . . . . Robots Hopped 13 | . . . . . . . . . . . . . . 1 . . 12 Potential Cave-ins 19 | . . . . . . . . . . 15 . . . 4 . . . Cave-ins Triggered . | . . . . . . . . . . . . . . . . . . Exploration Rate (%) 63 | 6 98 67 40 94 98 31 83 79 73 67 21 54 70 90 70 30 64 Regions Visited 17 Branch Regions 12 Pre-discovered Areas 8 | . 3 1 . 1 . . . . 1 . . . . . 2 . . Known Exits Taken 12 | . 1 1 1 1 1 . . . . 1 1 1 1 1 1 1 . Unknown Exits Taken 5 | 1 . . . . . 1 1 1 1 . . . . . . . . Scrap Searched 27 | . . 8 . . . . 4 4 . 3 . 4 3 . 1 . . Spaces Dug 85 | . 15 . 1 1 2 5 2 . . 15 14 4 2 . 1 17 6 Terrain Destroyed 316 | . 17 . 5 16 10 16 11 10 . 35 44 20 5 . 1 78 48 Melee 12 | . 10 . . . . . . . . . . . . . . . 2 Projectile 233 | . 7 . 5 5 10 16 11 10 . 35 26 20 5 . 1 36 46 AOE 71 | . . . . 11 . . . . . . 18 . . . . 42 . Terrain Rammed . | . . . . . . . . . . . . . . . . . . Walls Destroyed . | . . . . . . . . . . . . . . . . . . Machines Disabled . | . . . . . . . . . . . . . . . . . . Actions | -11 -10 -10 -8 -8 -8 -6 -6 -6 -6 -5 -5 -5 -5 -5 -4 -4 -4 --------- Run | Yrd Mat Sub Mat Sto Rec Fac Low Low Dat Pro Fac Upp Upp War Pro Fac Arm Total 17389 | 113 1577 1305 469 953 2303 1277 948 772 78 1247 725 745 507 1659 511 1128 1072 Wait 3165 | 2 189 50 43 118 935 44 138 34 1 573 114 253 5 281 52 117 216 Move 12931 | 90 1258 1202 341 716 1286 1107 771 711 77 600 545 453 487 1248 457 894 688 Hop 11 | . . . . . . . . . . . . . . 1 . . 10 Pick Up 186 | 3 22 12 23 19 20 26 3 2 . 11 7 3 . 19 . 6 10 Fast Attach 27 | 7 3 . 1 1 1 2 . . . 5 . . . . . . 7 Attach 26 | . 1 1 12 . 1 4 . . . . 2 . . . . 2 3 Detach 7 | . . . 2 . 2 1 . . . . . . . . . . 2 Swap 132 | . 13 13 7 17 2 5 . . . 3 24 6 2 14 1 23 2 Drop 187 | . 12 17 11 19 34 23 3 2 . 11 11 3 . 19 . 7 15 Fire 544 | 11 66 5 29 61 22 64 19 23 . 44 22 27 6 6 1 77 61 Melee 31 | . 13 5 . . . . . . . . . . . . . . 13 Ram 1 | . . . . . . . . . . . . . . . . 1 . Kick 2 | . . . . 2 . . . . . . . . . . . . . Crush 5 | . . . . . . 1 . . . . . . 4 . . . . Escape Stasis 12 | . . . . . . . . . . . . . . . . 1 11 Rewire 122 | . . . . . . . 14 . . . . . 3 71 . . 34 Trap . | . . . . . . . . . . . . . . . . . . Miscellaneous . | . . . . . . . . . . . . . . . . . . Route ------- -11/Scrapyard -10/Materials (discovered 5 exits: *Mat x3 / [*Min] / *Sub) -10/Subcaves (discovered 3 exits: *Mat x2 / Rec) -8/Materials (discovered 2 exits: *Sto x2) -8/Storage (discovered 2 exits: [*Fac] / *Rec) -8/Recycling -6/Factory (discovered 3 exits: *Fac / [*Low] / [*Ext]) -6/Lower Caves -6/Lower Caves (discovered 2 exits: *Fac / *Dat) -6/Data Miner -5/Proximity Caves -5/Factory (discovered 3 exits: *Fac / *Upp x2) -5/Upper Caves -5/Upper Caves (discovered 2 exits: Fac / *War) -5/Warlord -4/Proximity Caves -4/Factory (discovered 2 exits: *Res / *Arm) -4/Armory History --------- Turn | Location | Event 3 | -11/Scrapyard | Discovered new exit (range 16) 188 | -11/Scrapyard | Entered Materials 303 | -10/Materials | Build established: Mutant 995 | -10/Materials | Discovered new exit (range 6) 1025 | -10/Materials | Discovered new exit (range 15) 1223 | -10/Materials | Learned Storage garrison access intel 1289 | -10/Materials | Learned Storage trap positions 1298 | -10/Materials | Discovered new exit (range 11) 1343 | -10/Materials | Learned Storage stockpile data 1386 | -10/Materials | Learned location of Mines (-10) 1419 | -10/Materials | Learned location of 1 exit from Recycling 1481 | -10/Materials | Identified exit to Subcaves 1481 | -10/Materials | Identified exit to Materials 1528 | -10/Materials | Learned location of 2 exits from Subcaves 2201 | -10/Materials | Repaired Lgt. Treads 2229 | -10/Materials | Repaired Lgt. Treads 2268 | -10/Materials | Repaired Imp. Heat Sink 2659 | -10/Materials | Entered Subcaves 2660 | -10/Subcaves | Identified exit to Materials 2793 | -10/Subcaves | Visited triangular shrine 2803 | -10/Subcaves | Found Prototype Device 2803 | -10/Subcaves | Identified V3-11A's Pendant 2808 | -10/Subcaves | Befriended Subdweller 3178 | -10/Subcaves | Learned location of 1 exit from Materials 3192 | -10/Subcaves | A Subdweller sparked back to life 3192 | -10/Subcaves | A Subdweller sparked back to life 3192 | -10/Subcaves | A Subdweller sparked back to life 3193 | -10/Subcaves | Befriended Subdweller 3193 | -10/Subcaves | Befriended Subdweller 3193 | -10/Subcaves | Befriended Subdweller 3228 | -10/Subcaves | Befriended Subdweller 3443 | -10/Subcaves | Befriended Subdweller 3443 | -10/Subcaves | Befriended Subdweller 3538 | -10/Subcaves | Befriended Subdweller 3591 | -10/Subcaves | Shifting Twisted Machinery released Piercing Trap 3600 | -10/Subcaves | Shifting Twisted Machinery released Mak. Flight Unit 3833 | -10/Subcaves | Identified exit to Recycling 3840 | -10/Subcaves | Shifting Twisted Machinery released Spk. Treads 3849 | -10/Subcaves | Shifting Twisted Machinery released Hvy. Riot Gun 3908 | -10/Subcaves | Befriended Subdweller 3908 | -10/Subcaves | Befriended Subdweller 4022 | -10/Subcaves | Visited 4L-MR0's lab 4046 | -10/Subcaves | Found Arachnoskeleton 4113 | -10/Subcaves | A swath of the cavern ceiling suddenly collapsed 4313 | -10/Subcaves | Befriended Subdweller 4313 | -10/Subcaves | Befriended Subdweller 4318 | -10/Subcaves | Befriended Subdweller 4318 | -10/Subcaves | Befriended Subdweller 4335 | -10/Subcaves | Visited Clippyterm 4339 | -10/Subcaves | Learned Research machine intel 4422 | -10/Subcaves | Found Cargo Legs 4618 | -10/Subcaves | Befriended Subdweller 4699 | -10/Subcaves | Entered Materials 4699 | -8/Materials | Accompanied by 14 allies 4699 | -8/Materials | Evolved 4 slots: Propulsion x1, Utility x2, Weapon x1 4700 | -8/Materials | Identified exit to Storage 4715 | -8/Materials | Attached Arachnoskeleton, gained temporary slots: Propulsion x3 4716 | -8/Materials | Attached Cargo Legs, gained temporary slots: Utility x2 5111 | -8/Materials | Build established: Tank 5258 | -8/Materials | Entered Storage 5258 | -8/Storage | Accompanied by 2 allies 5259 | -8/Storage | Loaded intel: 15 trap records 5293 | -8/Storage | Lost 10 allies 5405 | -8/Storage | Assisted by bots powering up and referring to "LRC-V3" 5644 | -8/Storage | Used back door to open Recycling access 5644 | -8/Storage | Discovered exit to Recycling (range 5) 5704 | -8/Storage | Build established: Commander-Tank 5755 | -8/Storage | Discovered new exit (range 17) 6381 | -8/Storage | Entered Recycling 6381 | -8/Recycling | Accompanied by 9 allies 6382 | -8/Recycling | Identified exit to Factory 7072 | -8/Recycling | Entered Scraplab 7086 | -8/Recycling | Found Prototype Device 7086 | -8/Recycling | Identified Scrap Engine 7650 | -8/Recycling | Build established: Commander-Construct 9028 | -8/Recycling | Entered Factory 9028 | -6/Factory | Accompanied by 7 allies 9028 | -6/Factory | Evolved 4 slots: Power x1, Propulsion x1, Utility x2 9037 | -6/Factory | Found Unknown Device 9037 | -6/Factory | Identified Launcher Loader 9182 | -6/Factory | Lost 4 allies 9405 | -6/Factory | Discovered new exit (range 13) 9452 | -6/Factory | Build established: Construct 9720 | -6/Factory | Discovered new exit (range 22) 9848 | -6/Factory | Repaired Huge Storage Unit 9976 | -6/Factory | Identified exit to Factory 10104 | -6/Factory | Discovered new exit (range 17) 10115 | -6/Factory | Garrison activated, responded to threat 10158 | -6/Factory | Entered Lower Caves 10521 | -6/Lower Caves | Spotted B-75 Beast 10870 | -6/Lower Caves | Destroyed B-75 Beast 10879 | -6/Lower Caves | Found DCF Scrap (13 items) 11093 | -6/Lower Caves | Learned 8 Factory zone layouts 11176 | -6/Lower Caves | Discovered new exit (range 10) 11307 | -6/Lower Caves | Entered another Lower Caves area 11654 | -6/Lower Caves | Learned Factory terminal intel 11665 | -6/Lower Caves | Discovered exit to Factory (range 13) 11861 | -6/Lower Caves | Spotted B-75 Beast 11891 | -6/Lower Caves | Destroyed B-75 Beast 11910 | -6/Lower Caves | Learned Factory garrison access intel 12017 | -6/Lower Caves | Attracted the attention of an 0b10 checkpoint 12026 | -6/Lower Caves | Discovered new exit (range 19) 12041 | -6/Lower Caves | Entered Data Miner 12041 | -6/Data Miner | Discovered new exit (range 6) 12053 | -6/Data Miner | Met Data Miner 12080 | -6/Data Miner | Learned location of Section 7 (-2) 12080 | -6/Data Miner | Acquired the access code to Warlord's prototype stash 12091 | -6/Data Miner | Received God Mode back door access code from Data Miner 12113 | -6/Data Miner | Entered Proximity Caves 12152 | -5/Proximity Caves | Unaware initiated a cargo recovery operation 12233 | -5/Proximity Caves | Spotted B-75 Beast 12369 | -5/Proximity Caves | Found Prototype Processor 12369 | -5/Proximity Caves | Identified Spectral Analyzer 12372 | -5/Proximity Caves | Found Prototype Device 12372 | -5/Proximity Caves | Identified Exp. EM Disruption Field 12386 | -5/Proximity Caves | Found Prototype Device 12386 | -5/Proximity Caves | Identified Exp. Actuator Array 12402 | -5/Proximity Caves | Found Prototype Device 12402 | -5/Proximity Caves | Identified Adv. Kinecellerator 12417 | -5/Proximity Caves | Found Prototype Hackware 12691 | -5/Proximity Caves | Destroyed B-75 Beast 13100 | -5/Proximity Caves | Learned Factory terminal intel 13160 | -5/Proximity Caves | Discovered exit to Factory (range 13) 13302 | -5/Proximity Caves | Entered Factory 13302 | -5/Factory | Evolved 2 slots: Propulsion x1, Utility x1 13303 | -5/Factory | Identified exit to Upper Caves 13304 | -5/Factory | Loaded intel: 26 terminal locations 13305 | -5/Factory | Loaded intel: 4 garrison access locations 13668 | -5/Factory | Discovered new exit (range 13) 14005 | -5/Factory | Entered Upper Caves 14331 | -5/Upper Caves | Spotted B-75 Beast 14375 | -5/Upper Caves | Destroyed B-75 Beast 14508 | -5/Upper Caves | Attracted the attention of an 0b10 checkpoint 14516 | -5/Upper Caves | Identified exit to Upper Caves 14558 | -5/Upper Caves | Entered another Upper Caves area 14563 | -5/Upper Caves | Learned Factory terminal intel 14802 | -5/Upper Caves | Discovered new exit (range 15) 14810 | -5/Upper Caves | Identified exit to Warlord 14826 | -5/Upper Caves | Identified exit to Factory 14838 | -5/Upper Caves | Entered Warlord 14960 | -5/Warlord | Found Prototype Reactor 14963 | -5/Warlord | Found Prototype Device 14963 | -5/Warlord | Identified System Purifier 15071 | -5/Warlord | Visited the Vortex Lab 15073 | -5/Warlord | Found Prototype Energy Gun 15075 | -5/Warlord | Found Prototype Energy Gun 15078 | -5/Warlord | Found Prototype Energy Cannon 15080 | -5/Warlord | Found Prototype Energy Cannon 15083 | -5/Warlord | Warlord's base attacked by MAIN.C 15430 | -5/Warlord | Lost 3 allies 15433 | -5/Warlord | Warlord forces counterattacked 15504 | -5/Warlord | Spotted Executioner 15554 | -5/Warlord | Lost 22 allies 15565 | -5/Warlord | Spotted Executioner 15577 | -5/Warlord | Build established: Commander-Construct 15611 | -5/Warlord | Spotted Executioner 15627 | -5/Warlord | Discovered new exit (range 16) 15635 | -5/Warlord | Found Adv. Kinecellerator 15668 | -5/Warlord | Lost 13 allies 15679 | -5/Warlord | Met Warlord 15758 | -5/Warlord | Warlord base infiltrated, sounded retreat 15764 | -5/Warlord | Spotted Striker 15784 | -5/Warlord | Spotted Striker 15802 | -5/Warlord | Lost 5 allies 15804 | -5/Warlord | Spotted Striker 15809 | -5/Warlord | Spotted Executioner 15817 | -5/Warlord | Spotted Striker 15830 | -5/Warlord | Allies destroyed Executioner 15877 | -5/Warlord | Lost 3 allies 15888 | -5/Warlord | Spotted Executioner 15899 | -5/Warlord | Identified exit to Proximity Caves 15914 | -5/Warlord | Entered Proximity Caves 15924 | -4/Proximity Caves | Learned location of Quarantine (-2) 15943 | -4/Proximity Caves | Lost 4 allies 15967 | -4/Proximity Caves | Learned Research terminal intel 16125 | -4/Proximity Caves | Build established: Construct 16204 | -4/Proximity Caves | Discovered exit to Factory (range 14) 16262 | -4/Proximity Caves | Entered Factory 16262 | -4/Factory | Evolved 2 slots: Power x1, Weapon x1 16263 | -4/Factory | Identified exit to Armory 16264 | -4/Factory | Loaded intel: 26 terminal locations 16483 | -4/Factory | Found Quantum Capacitor 16946 | -4/Factory | System corruption reached 10% 16989 | -4/Factory | Discovered new exit (range 9) 16993 | -4/Factory | Identified exit to Research 17012 | -4/Factory | Search patrols dispatched 17017 | -4/Factory | Lost 5 parts (1p1n1u2w) 17025 | -4/Factory | Entered Armory 17041 | -4/Armory | Identified Vortex Driver 17156 | -4/Armory | P-70 Sage assimilated allied Swordsman 7b 17212 | -4/Armory | Found Prototype Launcher 17212 | -4/Armory | Identified Com. Tesla Bomb Launcher 17239 | -4/Armory | Core integrity fell below 50% 17383 | -4/Armory | Build established: Mutant 17407 | -4/Armory | Identified Exp. System Shield 17452 | -4/Armory | Found Adv. Powered Armor 17453 | -4/Armory | Found Adv. Powered Armor 17668 | -4/Armory | Core integrity fell below 20% 17672 | -4/Armory | Lost 4 parts (2p2u) 17775 | -4/Armory | Search patrols dispatched 17798 | -4/Armory | Destroyed by H-77 Assassin with Coil Gun Last Messages --------------- 17779_ Arm. Scrap Engine damaged due to network destabilization (-8). 17779_ Penetrated by Slug. 17779_ Arm. Scrap Engine destroyed. 17779_ Scrap Engine core remains intact and functional. 17780_ Slug penetrates Wall. 17780_ Penetrated by Slug. 17783_ Slug penetrates Wall. 17786_ The unstable cave ceiling collapses. 17788_ Slug penetrates Wall. 17790_ Slug penetrates L-61 Swordsman. 17790_ L-61 Swordsman destroyed. 17790_ Slug penetrates Wall. 17792_ Slug penetrates L-61 Swordsman. 17792_ L-61 Swordsman knocked back. 17793_ Slug penetrates Wall. 17793_ Slug penetrates L-61 Swordsman. 17793_ Slug penetrates Earth. 17794_ ORAHIZD:9EWAA5C<>GBDPRDR%V , NJ% 17797_ Penetrated by Slug. 17798_ Slug penetrates Wall. Map ----- +----------------------------------------------------+ | ?????# ## "" #????????????????????? | | ?????# + "T #????????????????????? | | ?????# # "" #????????????????????? | | ??##?## # "" #????????????????????? | | ###"??#% #? !#????????????????????? | | # ?# ############# """ ??????? | | # /!!?#%% % """ ??????? | | # /!! #%##### ##+########## #????? | | # !!! # ###?# ## #???????????????? | | # " " #?# ## #???????????????? | | # " "#??# ## #???????????????? | | ####### #???# ## """" #???????????????? | | # "^#???# ## " "?#???????????????? | | # ] # #???# ## " ! " #???????????????? | | # # #?###+## """"" #???????????????? | | # !# # % # #???????????????? | | # # # """ # #???????????????? | | # "" " + %""" # #???????????????? | | #""" # # """ # #???????#######?? | | #""" "%# % # ######### ]#?? | | #""" ?# #? # ## ?# #?? | | #""" ?# #??#"###h ## " "?# """ #?? | | # ??# #??# #?# ## " "?# """ #?? | | # !??# #??# #?# # " " # R" #?? | | ###???# #??# #?##h######## " " """ #?? | | ####??# #??# #??#@#??# # #?? | | " ?# #### ####p#### # # # +###### | | # ?# l | | # # ##"#####p##### # # # ######## | | # # # #??# #?????? | | # + # ]]][[[ #??###### ##?????? | | # #%# ]]][[[ #???????#########??????? | | # %%" #??????????????????????? | | ?###+##+###"#######??????????????????????? | | ???# %! [ #?????????????????????????????? | | ???#!!! #?????????????????????????????? | | ???#!!! ! #?????????????????????????????? | | ???#!!! #?????????????????????????????? | | ???# #?????????????????????????????? | | ???##"######?????????????????????????????? | | ???? ????????????????????????????????????? | | ???#?????????????????????????????????????? | | ?????????????????????????????????????????? | | ?????????????????????????????????????????? | | ?????????????????????????????????????????? | | ?????????????????????????????????????????? | | ?????????????????????????????????????????? | | ?????????????????????????????????????????? | | ?????????????????????????????????????????? | | ?????????????????????????????????????????? | +----------------------------------------------------+ Best States ------------- Heat Dissipation 74 Coolant Potential 100 Energy Generation 47 Energy Capacity 766 Matter Stores 300 Matter Capacity 300 Sight Range 24 Robot Scan Range 18 Terrain Scan Density 10 Jamming Range 12 Power Amplification 20 Armor Coverage 225 Resistance: KI 20 Propulsion Shielding 66 Evasion (%) 62 Targeting Accuracy 8 Core Analysis 6 Recoil Reduction 5 Offensive Hacking 10 Defensive Hacking 16 Authchip Count 1 Item Schematics ----------------- Enh. Optical Array | -8/Storage | Hacked Lgt. Regenerative Plating | -6/Data Miner | Free Combat Drone Bay | -6/Data Miner | Free Prc. Energy Filter | -6/Data Miner | Free Enh. Flexi-carbon Leg | -6/Data Miner | Free Mni. Smartbomb Launcher | -6/Data Miner | Free Imp. Antigrav System | -6/Data Miner | Free Adv. Transmission Jammer | -6/Data Miner | Free Hardcell Cannon | -6/Data Miner | Free Robot Schematics ------------------ Y-54 Guardian | -6/Data Miner | Free B-60 Warrior | -6/Data Miner | Free M-22 Extractor | -6/Data Miner | Free A-15 Conveyor | -6/Data Miner | Free R-10 Processor | -6/Data Miner | Free Fabricated ------------ Nothing Repaired ---------- Lgt. Treads | 35% | -10/Materials Lgt. Treads | 42% | -10/Materials Imp. Heat Sink | 67% | -10/Materials Huge Storage Unit | 33% | -6/Factory Studied --------- None Alien Tech Used ----------------- None Achievements -------------- SUBSUB Challenges ------------ None Game ------ Seed GaussFlightMagmablaster Manual? 0 Play Time 03:17:00 Cumulative 512.3 hours Start 2026.01.18 @ 17:36:18 End 2026.01.18 @ 22:17:07 Sessions 13 Manual Loads 0 Difficulty Rogue Special Mode None Game No. 303 Rogue 303 Adventurer 0 Explorer 0 Win Type - Total 13 Types 8/0/2/0/0/0/1/2/0/0 Lore% 84 Gallery% 83 Achievement% 66 Wizard Run 0 Options --------- Layout 0 ASCII 0 Keyboard 0 Movement Mouse Keybinds 0 Fullscreen 2 Font 24/Smallcaps Map View 76x50 Zoom Use 0% Tactical HUD 1 Map Filters NONE Filters NONE Steam 1 RUN: 67a33079-40a5-4926-bddb-be1388da3743